[Event "Titled Tuesday Blitz April 19 Late 2022"]
[White "Abdrlauf, Elham"]
[Black "Fedoseev, Vladimir"]
[WhiteFideId "1533533"]
[BlackFideId "24130737"]
[WhiteElo "2334"]
[BlackElo "2726"]
[Result "1/2-1/2"]
[Round "04"]
[TimeControl "180+1"]
[Date "2022.04.19"]
[WhiteClock "0:00:05"]
[BlackClock "0:00:04"]

1. e4 {[%clk 0:02:59]}  e5 {[%clk 0:02:56]} 2. Nc3 {[%clk 0:03:00]}  Bc5 {[%clk 0:02:55]} 3. Bc4 {[%clk 0:03:00]}  d6 {[%clk 0:02:54]} 4. Nge2 {[%clk 0:02:59]}  Qh4 {[%clk 0:02:48]} 5. O-O {[%clk 0:02:54]}  Nf6 {[%clk 0:02:45]} 6. d4 {[%clk 0:02:54]}  Bb6 {[%clk 0:02:39]} 7. f3 {[%clk 0:02:33]}  Nc6 {[%clk 0:02:29]} 8. Be3 {[%clk 0:02:33]}  exd4 {[%clk 0:02:29]} 9. Nxd4 {[%clk 0:02:34]}  O-O {[%clk 0:02:29]} 10. Qd2 {[%clk 0:02:30]}  Nxd4 {[%clk 0:02:12]} 11. Bxd4 {[%clk 0:02:31]}  Be6 {[%clk 0:02:12]} 12. Bb3 {[%clk 0:02:01]}  Rad8 {[%clk 0:01:50]} 13. Bf2 {[%clk 0:01:55]}  Qh5 {[%clk 0:01:43]} 14. Rad1 {[%clk 0:01:54]}  Ba5 {[%clk 0:01:30]} 15. Qe3 {[%clk 0:01:47]}  a6 {[%clk 0:01:23]} 16. Nd5 {[%clk 0:01:35]}  Bxd5 {[%clk 0:01:23]} 17. Bxd5 {[%clk 0:01:36]}  Bb6 {[%clk 0:01:21]} 18. Qe1 {[%clk 0:01:34]}  Bxf2+ {[%clk 0:01:20]} 19. Qxf2 {[%clk 0:01:35]}  Qe5 {[%clk 0:01:11]} 20. c3 {[%clk 0:01:32]}  Nxd5 {[%clk 0:01:09]} 21. Rxd5 {[%clk 0:01:33]}  Qe6 {[%clk 0:01:09]} 22. Rfd1 {[%clk 0:01:33]}  c6 {[%clk 0:01:07]} 23. R5d2 {[%clk 0:01:31]}  Qxa2 {[%clk 0:01:06]} 24. Qb6 {[%clk 0:01:16]}  Qa4 {[%clk 0:01:00]} 25. b3 {[%clk 0:00:44]}  Qa3 {[%clk 0:00:59]} 26. Qb4 {[%clk 0:00:41]}  Qxb4 {[%clk 0:00:54]} 27. cxb4 {[%clk 0:00:42]}  f5 {[%clk 0:00:42]} 28. Rxd6 {[%clk 0:00:23]}  Rxd6 {[%clk 0:00:42]} 29. Rxd6 {[%clk 0:00:24]}  fxe4 {[%clk 0:00:43]} 30. fxe4 {[%clk 0:00:25]}  Re8 {[%clk 0:00:35]} 31. Rd7 {[%clk 0:00:16]}  b6 {[%clk 0:00:35]} 32. Rd4 {[%clk 0:00:15]}  Kf7 {[%clk 0:00:32]} 33. Kf2 {[%clk 0:00:08]}  Ke6 {[%clk 0:00:32]} 34. Ke3 {[%clk 0:00:09]}  Ra8 {[%clk 0:00:31]} 35. Rc4 {[%clk 0:00:09]}  Kd6 {[%clk 0:00:29]} 36. Rd4+ {[%clk 0:00:09]}  Ke6 {[%clk 0:00:22]} 37. Rc4 {[%clk 0:00:09]}  Rc8 {[%clk 0:00:22]} 38. Rd4 {[%clk 0:00:08]}  c5 {[%clk 0:00:18]} 39. Rc4 {[%clk 0:00:08]}  Kd6 {[%clk 0:00:19]} 40. Rc2 {[%clk 0:00:07]}  Rc6 {[%clk 0:00:19]} 41. bxc5+ {[%clk 0:00:06]}  Rxc5 {[%clk 0:00:19]} 42. Rd2+ {[%clk 0:00:05]}  Ke5 {[%clk 0:00:18]} 43. Rd3 {[%clk 0:00:05]}  a5 {[%clk 0:00:17]} 44. h4 {[%clk 0:00:04]}  h5 {[%clk 0:00:17]} 45. g3 {[%clk 0:00:05]}  g6 {[%clk 0:00:16]} 46. Kf3 {[%clk 0:00:05]}  b5 {[%clk 0:00:16]} 47. Ke3 {[%clk 0:00:05]}  b4 {[%clk 0:00:17]} 48. Kf3 {[%clk 0:00:05]}  Rb5 {[%clk 0:00:08]} 49. Ke3 {[%clk 0:00:04]}  Rc5 {[%clk 0:00:08]} 50. Kf3 {[%clk 0:00:05]}  Rc3 {[%clk 0:00:05]} 51. Ke3 {[%clk 0:00:05]}  Rc5 {[%clk 0:00:04]} 1/2-1/2


[Site "https://www.chess.com"]

[Event "Titled Tuesday Blitz April 19 Late 2022"]
[White "Adewumi, Tanitoluwa"]
[Black "Bilych, Olexiy"]
[WhiteFideId "30966396"]
[BlackFideId "14156504"]
[WhiteElo "2529"]
[BlackElo "2709"]
[Result "0-1"]
[Round "04"]
[TimeControl "180+1"]
[Date "2022.04.19"]
[WhiteClock "0:00:03"]
[BlackClock "0:01:23"]

1. e4 {[%clk 0:02:54]}  e5 {[%clk 0:02:59]} 2. Nf3 {[%clk 0:02:53]}  Nc6 {[%clk 0:02:59]} 3. Bb5 {[%clk 0:02:46]}  Nf6 {[%clk 0:02:58]} 4. O-O {[%clk 0:02:44]}  Nxe4 {[%clk 0:02:58]} 5. d4 {[%clk 0:02:44]}  Nd6 {[%clk 0:02:58]} 6. Bxc6 {[%clk 0:02:42]}  dxc6 {[%clk 0:02:59]} 7. dxe5 {[%clk 0:02:43]}  Nf5 {[%clk 0:03:00]} 8. Qxd8+ {[%clk 0:02:44]}  Kxd8 {[%clk 0:03:00]} 9. Bf4 {[%clk 0:02:44]}  Bd7 {[%clk 0:02:57]} 10. h3 {[%clk 0:02:43]}  h6 {[%clk 0:02:53]} 11. Nc3 {[%clk 0:02:40]}  Kc8 {[%clk 0:02:48]} 12. Rad1 {[%clk 0:02:32]}  Be7 {[%clk 0:02:45]} 13. g4 {[%clk 0:02:19]}  Nh4 {[%clk 0:02:45]} 14. Nxh4 {[%clk 0:02:19]}  Bxh4 {[%clk 0:02:46]} 15. Kg2 {[%clk 0:02:09]}  b6 {[%clk 0:02:38]} 16. Bg3 {[%clk 0:01:56]}  Be7 {[%clk 0:02:34]} 17. f4 {[%clk 0:01:51]}  g6 {[%clk 0:02:11]} 18. f5 {[%clk 0:01:38]}  gxf5 {[%clk 0:02:07]} 19. gxf5 {[%clk 0:01:38]}  Rg8 {[%clk 0:02:07]} 20. Kh2 {[%clk 0:01:29]}  a5 {[%clk 0:01:57]} 21. e6 {[%clk 0:00:46]}  fxe6 {[%clk 0:01:58]} 22. f6 {[%clk 0:00:46]}  Bd6 {[%clk 0:01:45]} 23. Bxd6 {[%clk 0:00:34]}  cxd6 {[%clk 0:01:46]} 24. Rxd6 {[%clk 0:00:34]}  Kc7 {[%clk 0:01:46]} 25. Rfd1 {[%clk 0:00:32]}  Rad8 {[%clk 0:01:46]} 26. Ne4 {[%clk 0:00:26]}  e5 {[%clk 0:01:34]} 27. a3 {[%clk 0:00:10]}  Rgf8 {[%clk 0:01:35]} 28. b4 {[%clk 0:00:10]}  axb4 {[%clk 0:01:34]} 29. axb4 {[%clk 0:00:11]}  Bf5 {[%clk 0:01:31]} 30. Rxd8 {[%clk 0:00:11]}  Rxd8 {[%clk 0:01:31]} 31. Rxd8 {[%clk 0:00:07]}  Kxd8 {[%clk 0:01:32]} 32. Nd6 {[%clk 0:00:07]}  Bg6 {[%clk 0:01:28]} 33. Kg3 {[%clk 0:00:03]}  Kd7 {[%clk 0:01:28]} 34. Nc4 {[%clk 0:00:03]}  Ke6 {[%clk 0:01:26]} 35. Nxb6 {[%clk 0:00:03]}  Bxc2 {[%clk 0:01:25]} 36. f7 {[%clk 0:00:04]}  Kxf7 {[%clk 0:01:25]} 37. Nd7 {[%clk 0:00:04]}  Ke6 {[%clk 0:01:24]} 38. Nc5+ {[%clk 0:00:04]}  Kd5 {[%clk 0:01:23]} 39. Kh4 {[%clk 0:00:05]}  Bf5 {[%clk 0:01:23]} 40. Kg3 {[%clk 0:00:04]}  Kc4 {[%clk 0:01:22]} 41. Na6 {[%clk 0:00:03]}  Kb5 {[%clk 0:01:22]} 42. Nc7+ {[%clk 0:00:02]}  Kxb4 {[%clk 0:01:22]} 43. Ne8 {[%clk 0:00:03]}  c5 {[%clk 0:01:22]} 44. Nd6 {[%clk 0:00:04]}  Bg6 {[%clk 0:01:22]} 45. Kf3 {[%clk 0:00:02]}  c4 {[%clk 0:01:23]} 46. Ke3 {[%clk 0:00:03]}  c3 {[%clk 0:01:23]} 0-1


[Site "https://www.chess.com"]

[Event "Titled Tuesday Blitz April 19 Late 2022"]
[White "Ahmadzada, Ahmad"]
[Black "Sernecki, Franciszek"]
[WhiteFideId "13413007"]
[BlackFideId "1169297"]
[WhiteElo "2768"]
[BlackElo "2560"]
[Result "1-0"]
[Round "04"]
[TimeControl "180+1"]
[Date "2022.04.19"]
[WhiteClock "0:00:22"]
[BlackClock "0:00:02"]

1. Nf3 {[%clk 0:03:00]}  Nf6 {[%clk 0:02:58]} 2. g3 {[%clk 0:03:00]}  e6 {[%clk 0:02:58]} 3. Bg2 {[%clk 0:03:01]}  d5 {[%clk 0:02:59]} 4. O-O {[%clk 0:03:01]}  Be7 {[%clk 0:02:57]} 5. c4 {[%clk 0:03:02]}  d4 {[%clk 0:02:52]} 6. e3 {[%clk 0:03:02]}  c5 {[%clk 0:02:47]} 7. exd4 {[%clk 0:03:02]}  cxd4 {[%clk 0:02:47]} 8. d3 {[%clk 0:03:02]}  O-O {[%clk 0:02:46]} 9. a3 {[%clk 0:03:03]}  a5 {[%clk 0:02:42]} 10. Re1 {[%clk 0:03:01]}  Nc6 {[%clk 0:02:38]} 11. Bg5 {[%clk 0:03:01]}  h6 {[%clk 0:02:35]} 12. Bxf6 {[%clk 0:03:01]}  Bxf6 {[%clk 0:02:36]} 13. Nbd2 {[%clk 0:03:01]}  e5 {[%clk 0:02:24]} 14. Qc2 {[%clk 0:03:00]}  Bf5 {[%clk 0:02:22]} 15. c5 {[%clk 0:02:56]}  b6 {[%clk 0:01:54]} 16. Nc4 {[%clk 0:02:49]}  bxc5 {[%clk 0:01:44]} 17. Nfxe5 {[%clk 0:02:45]}  Nxe5 {[%clk 0:01:42]} 18. Nxe5 {[%clk 0:02:34]}  Rc8 {[%clk 0:01:40]} 19. Nc4 {[%clk 0:02:23]}  Qc7 {[%clk 0:01:29]} 20. Be4 {[%clk 0:02:17]}  Bd7 {[%clk 0:01:13]} 21. Bd5 {[%clk 0:02:12]}  h5 {[%clk 0:01:09]} 22. Qe2 {[%clk 0:02:02]}  h4 {[%clk 0:01:06]} 23. Qh5 {[%clk 0:02:00]}  hxg3 {[%clk 0:00:54]} 24. hxg3 {[%clk 0:01:59]}  Rb8 {[%clk 0:00:39]} 25. Qf3 {[%clk 0:01:32]}  a4 {[%clk 0:00:33]} 26. Kg2 {[%clk 0:01:31]}  Rfe8 {[%clk 0:00:12]} 27. Rh1 {[%clk 0:01:24]}  Be6 {[%clk 0:00:09]} 28. Rh5 {[%clk 0:00:48]}  Bxd5 {[%clk 0:00:07]} 29. Qxd5 {[%clk 0:00:48]}  Qb7 {[%clk 0:00:07]} 30. Qxb7 {[%clk 0:00:48]}  Rxb7 {[%clk 0:00:08]} 31. Nd6 {[%clk 0:00:48]}  Rbe7 {[%clk 0:00:08]} 32. Nxe8 {[%clk 0:00:48]}  Rxe8 {[%clk 0:00:08]} 33. Rxc5 {[%clk 0:00:48]}  Rb8 {[%clk 0:00:09]} 34. Rc4 {[%clk 0:00:45]}  Rxb2 {[%clk 0:00:08]} 35. Rxa4 {[%clk 0:00:45]}  Rd2 {[%clk 0:00:09]} 36. Rh1 {[%clk 0:00:41]}  g6 {[%clk 0:00:08]} 37. Ra8+ {[%clk 0:00:41]}  Kg7 {[%clk 0:00:08]} 38. Rah8 {[%clk 0:00:40]}  Be5 {[%clk 0:00:07]} 39. R1h7+ {[%clk 0:00:39]}  Kf6 {[%clk 0:00:07]} 40. Rf8 {[%clk 0:00:40]}  Rxd3 {[%clk 0:00:06]} 41. Rfxf7+ {[%clk 0:00:40]}  Ke6 {[%clk 0:00:07]} 42. Re7+ {[%clk 0:00:34]}  Kd6 {[%clk 0:00:05]} 43. f4 {[%clk 0:00:31]}  Bf6 {[%clk 0:00:03]} 44. Ra7 {[%clk 0:00:28]}  Rd2+ {[%clk 0:00:03]} 45. Kf3 {[%clk 0:00:28]}  d3 {[%clk 0:00:02]} 46. Ra6+ {[%clk 0:00:28]}  Kd5 {[%clk 0:00:02]} 47. Rxf6 {[%clk 0:00:28]}  Ra2 {[%clk 0:00:02]} 48. Rd7+ {[%clk 0:00:27]}  Kc4 {[%clk 0:00:02]} 49. Rc6+ {[%clk 0:00:28]}  Kb3 {[%clk 0:00:03]} 50. Rxd3+ {[%clk 0:00:27]}  Ka4 {[%clk 0:00:02]} 51. Rxg6 {[%clk 0:00:26]}  Kb5 {[%clk 0:00:03]} 52. f5 {[%clk 0:00:25]}  Kc4 {[%clk 0:00:04]} 53. Re3 {[%clk 0:00:25]}  Kd4 {[%clk 0:00:02]} 54. Rg4+ {[%clk 0:00:23]}  Kd5 {[%clk 0:00:02]} 55. f6 {[%clk 0:00:24]}  Kd6 {[%clk 0:00:02]} 56. f7 {[%clk 0:00:24]}  Re2 {[%clk 0:00:02]} 57. f8=Q+ {[%clk 0:00:23]}  Kd5 {[%clk 0:00:02]} 58. Rxe2 {[%clk 0:00:22]} 1-0


[Site "https://www.chess.com"]

[Event "Titled Tuesday Blitz April 19 Late 2022"]
[White "Andreikin, Dmitry"]
[Black "Bacrot, Etienne"]
[WhiteFideId "4158814"]
[BlackFideId "605506"]
[WhiteElo "2736"]
[BlackElo "2673"]
[Result "1-0"]
[Round "04"]
[TimeControl "180+1"]
[Date "2022.04.19"]
[WhiteClock "0:01:58"]
[BlackClock "0:01:15"]

1. d4 {[%clk 0:03:00]}  d5 {[%clk 0:03:00]} 2. c4 {[%clk 0:03:01]}  dxc4 {[%clk 0:03:00]} 3. e4 {[%clk 0:03:01]}  e5 {[%clk 0:03:01]} 4. Nf3 {[%clk 0:03:00]}  exd4 {[%clk 0:03:00]} 5. Bxc4 {[%clk 0:03:00]}  Nc6 {[%clk 0:02:56]} 6. O-O {[%clk 0:03:00]}  Be6 {[%clk 0:02:56]} 7. Bb5 {[%clk 0:03:00]}  Bc5 {[%clk 0:02:54]} 8. b4 {[%clk 0:03:00]}  Bb6 {[%clk 0:02:53]} 9. a4 {[%clk 0:02:59]}  a6 {[%clk 0:02:53]} 10. Bxc6+ {[%clk 0:02:59]}  bxc6 {[%clk 0:02:53]} 11. Nbd2 {[%clk 0:02:56]}  Nf6 {[%clk 0:02:52]} 12. Ne5 {[%clk 0:02:53]}  O-O {[%clk 0:02:46]} 13. a5 {[%clk 0:02:51]}  Ba7 {[%clk 0:02:33]} 14. Qc2 {[%clk 0:02:42]}  Qd6 {[%clk 0:02:10]} 15. Nd3 {[%clk 0:02:40]}  Ng4 {[%clk 0:02:03]} 16. Nf3 {[%clk 0:02:37]}  Rfd8 {[%clk 0:01:40]} 17. h3 {[%clk 0:02:27]}  Nh6 {[%clk 0:01:40]} 18. Bf4 {[%clk 0:02:20]}  Qf8 {[%clk 0:01:35]} 19. Qxc6 {[%clk 0:02:11]}  Bd7 {[%clk 0:01:30]} 20. Qxa6 {[%clk 0:02:05]}  Rdb8 {[%clk 0:01:19]} 21. Qc4 {[%clk 0:01:58]}  Bb5 {[%clk 0:01:17]} 22. Qc2 {[%clk 0:01:58]}  Bxd3 {[%clk 0:01:14]} 23. Qxd3 {[%clk 0:01:59]}  Rxb4 {[%clk 0:01:15]} 24. Bxc7 {[%clk 0:01:58]} 1-0


[Site "https://www.chess.com"]

[Event "Titled Tuesday Blitz April 19 Late 2022"]
[White "Avramidou, Anastasia"]
[Black "Romero Ruscalleda, Josep"]
[WhiteFideId "4239873"]
[BlackFideId "2231859"]
[WhiteElo "2183"]
[BlackElo "2314"]
[Result "1-0"]
[Round "04"]
[TimeControl "180+1"]
[Date "2022.04.19"]
[WhiteClock "0:00:13"]
[BlackClock "0:00:06"]

1. c4 {[%clk 0:03:00]}  g6 {[%clk 0:03:00]} 2. d4 {[%clk 0:03:00]}  Bg7 {[%clk 0:03:00]} 3. Nc3 {[%clk 0:03:01]}  d6 {[%clk 0:03:01]} 4. e4 {[%clk 0:03:02]}  e5 {[%clk 0:03:01]} 5. d5 {[%clk 0:03:02]}  Ne7 {[%clk 0:03:01]} 6. Be3 {[%clk 0:03:02]}  O-O {[%clk 0:03:01]} 7. Qd2 {[%clk 0:03:02]}  f5 {[%clk 0:03:01]} 8. f3 {[%clk 0:03:02]}  Nd7 {[%clk 0:03:00]} 9. Bd3 {[%clk 0:03:01]}  Nf6 {[%clk 0:02:59]} 10. Bc2 {[%clk 0:03:01]}  fxe4 {[%clk 0:02:54]} 11. Nxe4 {[%clk 0:03:01]}  Nf5 {[%clk 0:02:53]} 12. Bf2 {[%clk 0:03:01]}  Bh6 {[%clk 0:02:52]} 13. Qc3 {[%clk 0:02:55]}  Nxe4 {[%clk 0:02:41]} 14. Bxe4 {[%clk 0:02:55]}  Qg5 {[%clk 0:02:32]} 15. g4 {[%clk 0:02:39]}  Nd4 {[%clk 0:02:25]} 16. h4 {[%clk 0:01:58]}  Qf4 {[%clk 0:02:19]} 17. g5 {[%clk 0:01:58]}  Bg7 {[%clk 0:02:16]} 18. Qd2 {[%clk 0:01:46]}  Bd7 {[%clk 0:01:45]} 19. Qxf4 {[%clk 0:01:39]}  exf4 {[%clk 0:01:45]} 20. O-O-O {[%clk 0:01:34]}  Nf5 {[%clk 0:01:44]} 21. Ne2 {[%clk 0:01:32]}  Be5 {[%clk 0:01:21]} 22. h5 {[%clk 0:01:07]}  Rae8 {[%clk 0:01:14]} 23. b3 {[%clk 0:01:04]}  Ng3 {[%clk 0:01:01]} 24. Bxg3 {[%clk 0:00:56]}  fxg3 {[%clk 0:01:01]} 25. hxg6 {[%clk 0:00:57]}  hxg6 {[%clk 0:00:58]} 26. Bxg6 {[%clk 0:00:52]}  Rxf3 {[%clk 0:00:54]} 27. Bxe8 {[%clk 0:00:50]}  Bxe8 {[%clk 0:00:54]} 28. Kd2 {[%clk 0:00:39]}  Bg6 {[%clk 0:00:51]} 29. Rh4 {[%clk 0:00:26]}  Rf5 {[%clk 0:00:33]} 30. Rg4 {[%clk 0:00:25]}  Bh5 {[%clk 0:00:31]} 31. Rh4 {[%clk 0:00:23]}  Rxg5 {[%clk 0:00:31]} 32. Rg1 {[%clk 0:00:22]}  Bg6 {[%clk 0:00:20]} 33. Rh3 {[%clk 0:00:16]}  g2 {[%clk 0:00:20]} 34. Ke3 {[%clk 0:00:13]}  Kg7 {[%clk 0:00:17]} 35. Rf3 {[%clk 0:00:13]}  Bh5 {[%clk 0:00:15]} 36. Rf2 {[%clk 0:00:13]}  Bh2 {[%clk 0:00:06]} 37. Rgxg2 {[%clk 0:00:13]} 1-0


[Site "https://www.chess.com"]

[Event "Titled Tuesday Blitz April 19 Late 2022"]
[White "Baches Garcia, Guillermo"]
[Black "Balint, Vilmos"]
[WhiteFideId "2209764"]
[BlackFideId "718050"]
[WhiteElo "2508"]
[BlackElo "2059"]
[Result "1/2-1/2"]
[Round "04"]
[TimeControl "180+1"]
[Date "2022.04.19"]
[WhiteClock "0:00:05"]
[BlackClock "0:01:04"]

1. e4 {[%clk 0:03:00]}  e6 {[%clk 0:02:59]} 2. Nf3 {[%clk 0:03:00]}  d5 {[%clk 0:03:00]} 3. exd5 {[%clk 0:03:00]}  exd5 {[%clk 0:03:00]} 4. d4 {[%clk 0:03:01]}  Nf6 {[%clk 0:03:01]} 5. Bd3 {[%clk 0:03:00]}  Bg4 {[%clk 0:02:59]} 6. O-O {[%clk 0:03:00]}  Be7 {[%clk 0:02:59]} 7. Bg5 {[%clk 0:03:00]}  O-O {[%clk 0:02:59]} 8. Nbd2 {[%clk 0:03:00]}  c6 {[%clk 0:03:00]} 9. c3 {[%clk 0:03:00]}  Nbd7 {[%clk 0:03:00]} 10. Qc2 {[%clk 0:03:00]}  Bh5 {[%clk 0:02:57]} 11. Rae1 {[%clk 0:02:58]}  Bg6 {[%clk 0:02:57]} 12. Ne5 {[%clk 0:02:58]}  Bxd3 {[%clk 0:02:46]} 13. Qxd3 {[%clk 0:02:58]}  Nxe5 {[%clk 0:02:44]} 14. dxe5 {[%clk 0:02:58]}  Ne8 {[%clk 0:02:44]} 15. Bxe7 {[%clk 0:02:56]}  Qxe7 {[%clk 0:02:44]} 16. f4 {[%clk 0:02:56]}  g6 {[%clk 0:02:44]} 17. f5 {[%clk 0:02:53]}  Nc7 {[%clk 0:02:43]} 18. Qh3 {[%clk 0:02:33]}  Rfe8 {[%clk 0:02:27]} 19. Nf3 {[%clk 0:02:30]}  gxf5 {[%clk 0:02:13]} 20. Qxf5 {[%clk 0:02:22]}  Ne6 {[%clk 0:02:07]} 21. Re3 {[%clk 0:02:14]}  Kh8 {[%clk 0:02:07]} 22. Nd4 {[%clk 0:02:08]}  Rg8 {[%clk 0:02:02]} 23. Qxf7 {[%clk 0:01:57]}  Rae8 {[%clk 0:01:58]} 24. Qxe7 {[%clk 0:01:27]}  Rxe7 {[%clk 0:01:58]} 25. Nf5 {[%clk 0:01:25]}  Rf7 {[%clk 0:01:55]} 26. Nd6 {[%clk 0:01:18]}  Rxf1+ {[%clk 0:01:42]} 27. Kxf1 {[%clk 0:01:19]}  b6 {[%clk 0:01:39]} 28. Rf3 {[%clk 0:01:10]}  Rg4 {[%clk 0:01:26]} 29. Rf6 {[%clk 0:00:52]}  Nc5 {[%clk 0:01:21]} 30. e6 {[%clk 0:00:48]}  Ne4 {[%clk 0:01:12]} 31. Rf8+ {[%clk 0:00:35]}  Kg7 {[%clk 0:01:12]} 32. Rf7+ {[%clk 0:00:26]}  Kg6 {[%clk 0:01:12]} 33. Nxe4 {[%clk 0:00:18]}  Rxe4 {[%clk 0:01:13]} 34. Rxa7 {[%clk 0:00:16]}  Rxe6 {[%clk 0:01:13]} 35. a4 {[%clk 0:00:16]}  Kf5 {[%clk 0:01:09]} 36. Rb7 {[%clk 0:00:15]}  c5 {[%clk 0:01:10]} 37. a5 {[%clk 0:00:15]}  bxa5 {[%clk 0:01:10]} 38. Rb5 {[%clk 0:00:15]}  Rc6 {[%clk 0:01:04]} 39. Rxa5 {[%clk 0:00:15]}  Ke4 {[%clk 0:01:05]} 40. b4 {[%clk 0:00:14]}  c4 {[%clk 0:01:03]} 41. Ke2 {[%clk 0:00:09]}  Rh6 {[%clk 0:01:03]} 42. h3 {[%clk 0:00:08]}  Rg6 {[%clk 0:01:03]} 43. Kf2 {[%clk 0:00:04]}  Rf6+ {[%clk 0:01:03]} 44. Ke2 {[%clk 0:00:04]}  Rg6 {[%clk 0:01:04]} 45. Kf2 {[%clk 0:00:05]}  Rf6+ {[%clk 0:01:04]} 46. Ke2 {[%clk 0:00:05]}  Rg6 {[%clk 0:01:04]} 1/2-1/2


[Site "https://www.chess.com"]

[Event "Titled Tuesday Blitz April 19 Late 2022"]
[White "Bachmann, Axel"]
[Black "Gu, Xiaobing"]
[WhiteFideId "3700488"]
[BlackFideId "8602611"]
[WhiteElo "2587"]
[BlackElo "2174"]
[Result "0-1"]
[Round "04"]
[TimeControl "180+1"]
[Date "2022.04.19"]
[WhiteClock "0:00:14"]
[BlackClock "0:01:09"]

1. d4 {[%clk 0:02:54]}  Nf6 {[%clk 0:02:58]} 2. g3 {[%clk 0:02:51]}  g6 {[%clk 0:02:58]} 3. Bg2 {[%clk 0:02:51]}  Bg7 {[%clk 0:02:59]} 4. e4 {[%clk 0:02:52]}  d6 {[%clk 0:02:55]} 5. Ne2 {[%clk 0:02:52]}  O-O {[%clk 0:02:54]} 6. O-O {[%clk 0:02:52]}  c6 {[%clk 0:02:54]} 7. a4 {[%clk 0:02:52]}  Nbd7 {[%clk 0:02:52]} 8. Nbc3 {[%clk 0:02:52]}  e5 {[%clk 0:02:52]} 9. h3 {[%clk 0:02:53]}  Qc7 {[%clk 0:02:39]} 10. g4 {[%clk 0:02:48]}  exd4 {[%clk 0:02:29]} 11. Nxd4 {[%clk 0:02:48]}  Nc5 {[%clk 0:02:29]} 12. Re1 {[%clk 0:02:42]}  Re8 {[%clk 0:02:29]} 13. Bf4 {[%clk 0:02:21]}  Nfd7 {[%clk 0:02:20]} 14. Nde2 {[%clk 0:02:10]}  Ne5 {[%clk 0:02:19]} 15. b3 {[%clk 0:02:04]}  Be6 {[%clk 0:02:17]} 16. Qd2 {[%clk 0:02:04]}  Rad8 {[%clk 0:02:17]} 17. Ng3 {[%clk 0:02:02]}  Qa5 {[%clk 0:02:14]} 18. Re3 {[%clk 0:01:55]}  d5 {[%clk 0:01:33]} 19. exd5 {[%clk 0:01:50]}  Bxd5 {[%clk 0:01:33]} 20. Bxd5 {[%clk 0:01:38]}  cxd5 {[%clk 0:01:33]} 21. Nce4 {[%clk 0:01:07]}  Qxd2 {[%clk 0:01:26]} 22. Nxd2 {[%clk 0:01:08]}  Nf3+ {[%clk 0:01:26]} 23. Nxf3 {[%clk 0:01:03]}  Bxa1 {[%clk 0:01:26]} 24. Be5 {[%clk 0:00:31]}  Bxe5 {[%clk 0:01:24]} 25. Nxe5 {[%clk 0:00:31]}  d4 {[%clk 0:01:24]} 26. Re1 {[%clk 0:00:30]}  f6 {[%clk 0:01:23]} 27. Nf3 {[%clk 0:00:27]}  Rxe1+ {[%clk 0:01:23]} 28. Nxe1 {[%clk 0:00:28]}  d3 {[%clk 0:01:23]} 29. cxd3 {[%clk 0:00:28]}  Nxb3 {[%clk 0:01:17]} 30. Ne4 {[%clk 0:00:26]}  Kf7 {[%clk 0:01:16]} 31. Kf1 {[%clk 0:00:22]}  Nc1 {[%clk 0:01:14]} 32. Nc5 {[%clk 0:00:20]}  b6 {[%clk 0:01:14]} 33. Ne4 {[%clk 0:00:16]}  Nxd3 {[%clk 0:01:14]} 34. Nf3 {[%clk 0:00:16]}  Nc5 {[%clk 0:01:10]} 35. Nc3 {[%clk 0:00:14]}  Rd3 {[%clk 0:01:09]} 0-1


[Site "https://www.chess.com"]

[Event "Titled Tuesday Blitz April 19 Late 2022"]
[White "Bas Mas, Jose Joaquin"]
[Black "Jaracz, Pawel"]
[WhiteFideId "22219064"]
[BlackFideId "1102222"]
[WhiteElo "2212"]
[BlackElo "2429"]
[Result "0-1"]
[Round "04"]
[TimeControl "180+1"]
[Date "2022.04.19"]
[WhiteClock "0:00:02"]
[BlackClock "0:00:34"]

1. e4 {[%clk 0:03:00]}  c5 {[%clk 0:03:00]} 2. Nc3 {[%clk 0:03:00]}  Nc6 {[%clk 0:03:00]} 3. Bb5 {[%clk 0:03:00]}  Nd4 {[%clk 0:03:00]} 4. Nf3 {[%clk 0:03:00]}  e6 {[%clk 0:02:59]} 5. Bc4 {[%clk 0:03:00]}  Qc7 {[%clk 0:02:57]} 6. O-O {[%clk 0:02:57]}  Nf6 {[%clk 0:02:56]} 7. d3 {[%clk 0:02:56]}  a6 {[%clk 0:02:53]} 8. Nxd4 {[%clk 0:02:55]}  cxd4 {[%clk 0:02:54]} 9. Ne2 {[%clk 0:02:55]}  Nxe4 {[%clk 0:02:54]} 10. dxe4 {[%clk 0:02:53]}  Qxc4 {[%clk 0:02:54]} 11. b3 {[%clk 0:02:45]}  Qc7 {[%clk 0:02:49]} 12. Nxd4 {[%clk 0:02:43]}  Be7 {[%clk 0:02:48]} 13. c4 {[%clk 0:02:42]}  O-O {[%clk 0:02:47]} 14. Bb2 {[%clk 0:02:42]}  d6 {[%clk 0:02:47]} 15. Qe2 {[%clk 0:02:41]}  Bd7 {[%clk 0:02:46]} 16. Rac1 {[%clk 0:02:39]}  Qa5 {[%clk 0:02:45]} 17. Bc3 {[%clk 0:02:38]}  Qc5 {[%clk 0:02:39]} 18. b4 {[%clk 0:02:34]}  Qc7 {[%clk 0:02:39]} 19. a3 {[%clk 0:02:26]}  Rac8 {[%clk 0:02:38]} 20. Bb2 {[%clk 0:02:25]}  Qb8 {[%clk 0:02:37]} 21. Nf3 {[%clk 0:02:15]}  b5 {[%clk 0:02:34]} 22. c5 {[%clk 0:01:46]}  dxc5 {[%clk 0:02:33]} 23. Rfd1 {[%clk 0:01:45]}  Rfd8 {[%clk 0:02:29]} 24. Be5 {[%clk 0:01:45]}  Qb7 {[%clk 0:02:28]} 25. bxc5 {[%clk 0:01:39]}  Bxc5 {[%clk 0:02:24]} 26. Bb2 {[%clk 0:01:35]}  Bf8 {[%clk 0:02:23]} 27. Ne5 {[%clk 0:01:32]}  Be8 {[%clk 0:02:19]} 28. Ng4 {[%clk 0:01:22]}  Rxd1+ {[%clk 0:02:14]} 29. Rxd1 {[%clk 0:01:21]}  Qe7 {[%clk 0:02:09]} 30. Qf3 {[%clk 0:01:09]}  Rc2 {[%clk 0:01:39]} 31. Qb3 {[%clk 0:01:03]}  Qc5 {[%clk 0:01:21]} 32. Rd8 {[%clk 0:00:36]}  Qc7 {[%clk 0:01:09]} 33. Rd1 {[%clk 0:00:11]}  h5 {[%clk 0:00:51]} 34. Ne3 {[%clk 0:00:07]}  Rc6 {[%clk 0:00:50]} 35. Ba1 {[%clk 0:00:04]}  Rc1 {[%clk 0:00:46]} 36. Qb2 {[%clk 0:00:04]}  Rxd1+ {[%clk 0:00:46]} 37. Nxd1 {[%clk 0:00:05]}  Qc4 {[%clk 0:00:44]} 38. f3 {[%clk 0:00:04]}  f6 {[%clk 0:00:37]} 39. Ne3 {[%clk 0:00:03]}  Qd3 {[%clk 0:00:37]} 40. Kf2 {[%clk 0:00:02]}  Bc5 {[%clk 0:00:37]} 41. Qe2 {[%clk 0:00:02]}  Qxa3 {[%clk 0:00:35]} 42. Bb2 {[%clk 0:00:02]}  Bxe3+ {[%clk 0:00:34]} 0-1


[Site "https://www.chess.com"]

[Event "Titled Tuesday Blitz April 19 Late 2022"]
[White "Bashirli, Nail"]
[Black "Debray, Christopher"]
[WhiteFideId "13406809"]
[BlackFideId "630810"]
[WhiteElo "2652"]
[BlackElo "2492"]
[Result "1-0"]
[Round "04"]
[TimeControl "180+1"]
[Date "2022.04.19"]
[WhiteClock "0:02:52"]
[BlackClock "0:02:30"]

1. e4 {[%clk 0:03:00]}  c6 {[%clk 0:03:00]} 2. Nc3 {[%clk 0:03:01]}  d5 {[%clk 0:03:01]} 3. Nf3 {[%clk 0:03:01]}  Nf6 {[%clk 0:03:00]} 4. e5 {[%clk 0:02:59]}  Ne4 {[%clk 0:03:00]} 5. Nxe4 {[%clk 0:02:59]}  dxe4 {[%clk 0:03:00]} 6. Ng5 {[%clk 0:02:59]}  Qd5 {[%clk 0:03:00]} 7. d4 {[%clk 0:02:57]}  exd3 {[%clk 0:03:00]} 8. Bxd3 {[%clk 0:02:57]}  Qxe5+ {[%clk 0:02:59]} 9. Be3 {[%clk 0:02:57]}  h6 {[%clk 0:02:54]} 10. Ne4 {[%clk 0:02:51]}  Bf5 {[%clk 0:02:49]} 11. Qf3 {[%clk 0:02:51]}  Bxe4 {[%clk 0:02:40]} 12. Bxe4 {[%clk 0:02:51]}  Nd7 {[%clk 0:02:32]} 13. O-O-O {[%clk 0:02:51]}  Nf6 {[%clk 0:02:30]} 14. Bxc6+ {[%clk 0:02:52]} 1-0


[Site "https://www.chess.com"]